fUST/lending_fUST_20240324
["ID","MTS","AMOUNT","RATE_DAILY","PERIOD"]
[320328346,1711293046326,-243.414392,0.00042,7]
[320328347,1711293046337,-243.414392,0.00042,7]
[320328348,1711293046346,-1441.780004,0.00042,7]
[320328349,1711293046355,-1441.780004,0.00042,7]
[320328350,1711293046365,-2675.831015,0.00042,7]
[320328351,1711293046374,-2675.831015,0.00042,7]
[320328352,1711293046383,-151.0,0.00042,7]
[320328353,1711293046392,-2872.44789679,0.00045,30]
[320328354,1711293046401,-565.22677549,0.00045,2]
[320328355,1711293046410,-694.89,0.000453,120]
[320328356,1711293046419,-185.716181,0.00047489,120]
[320328357,1711293046429,-700.40598325,0.000479,30]
[320328358,1711293046440,-146346.59779771,0.00047919,30]
[320328359,1711293046449,-151.0,0.00047919,7]
[320328360,1711293046458,-339.469608,0.00047919,7]
[320328361,1711293046467,-339.469608,0.00047919,7]
[320328362,1711293046477,-151.0,0.00047919,7]
[320328363,1711293046486,-396.769747,0.00047919,7]
[320328364,1711293046495,-396.769747,0.00047919,7]
[320328365,1711293046504,-151.0,0.00047919,7]
[320328366,1711293046514,-253.420987,0.00047919,7]
[320328367,1711293046522,-253.420987,0.00047919,7]
[320328368,1711293046532,-243.414392,0.00047919,7]
[320328369,1711293046542,-243.414392,0.00047919,7]
[320328370,1711293046551,-1441.780004,0.00047919,7]
[320328371,1711293046561,-1441.780004,0.00047919,7]
[320328372,1711293046571,-2675.831015,0.00047919,7]
[320328373,1711293046581,-2675.831015,0.00047919,7]
[320328374,1711293046590,-151.0,0.00047919,7]
[320328375,1711293046599,-3550.403042,0.00049,68]
[320328376,1711293046609,-167.39705751,0.0005,60]
[320328377,1711293046619,-222.10082955,0.0005,120]
[320328378,1711293046628,-183.64778735,0.0005,20]
[320328379,1711293046638,-102386.00531544,0.000529,30]
[320328380,1711293046647,-29228.53008114,0.000529,30]
[320328381,1711293046657,-5946.03738829,0.000529,30]
[320328382,1711293046917,-15315.67124397,0.000529,30]
[320328383,1711293046927,-151.0,0.000529,7]
[320328384,1711293046936,-339.469608,0.000529,7]
[320328385,1711293046945,-339.469608,0.000529,7]
[320328386,1711293046955,-151.0,0.000529,7]
[320328387,1711293046963,-396.769747,0.000529,7]
[320328388,1711293046973,-396.769747,0.000529,7]
[320328389,1711293046982,-151.0,0.000529,7]
[320328390,1711293046991,-253.420987,0.000529,7]
[320328391,1711293047000,-253.420987,0.000529,7]
[320328392,1711293047010,-243.414392,0.000529,7]
[320328393,1711293047019,-243.414392,0.000529,7]
[320328394,1711293047028,-1441.780004,0.000529,7]
[320328395,1711293047037,-1441.780004,0.000529,7]
[320328396,1711293047046,-2675.831015,0.000529,7]
[320328397,1711293047056,-2675.831015,0.000529,7]
[320328398,1711293047065,-151.0,0.000529,7]
[320328399,1711293047074,-185.716181,0.00053425,120]
[320328400,1711293047084,-1856.68,0.00054494,6]
[320328401,1711293047093,-500.0,0.00054794,2]
[320328402,1711293047102,-500.0,0.00054794,2]
[320328403,1711293047112,-500.0,0.00054794,2]
[320328404,1711293047121,-500.0,0.00054794,2]
[320328405,1711293047130,-500.0,0.00054794,2]
[320328406,1711293047139,-500.0,0.00054794,2]
[320328407,1711293047149,-500.0,0.00054794,2]
[320328408,1711293047158,-500.0,0.00054794,2]
[320328409,1711293047167,-500.0,0.00054794,2]
[320328410,1711293047176,-500.0,0.00054794,2]
[320328411,1711293047185,-500.0,0.00054794,2]
[320328412,1711293047194,-250.0,0.00054794,2]
[320328413,1711293047203,-500.0,0.00054794,2]
[320328414,1711293047212,-500.0,0.00054794,2]
[320328415,1711293047221,-250.0,0.00054794,2]
[320328416,1711293047231,-250.0,0.00054794,2]
[320328417,1711293047240,-500.0,0.00054794,2]
[320328418,1711293047249,-377.621982,0.00054794,2]
[320328419,1711293047258,-500.0,0.00054794,2]
[320328420,1711293047267,-500.0,0.00054794,2]
[320328421,1711293047277,-500.0,0.00054794,2]
[320328422,1711293047286,-500.0,0.00054794,2]
[320328423,1711293047295,-537.90823475,0.00054794,2]
[320328424,1711293047305,-189.09822408,0.00054794,120]
[320328425,1711293047314,-151.0,0.00054794,7]
[320328426,1711293047324,-339.469608,0.00054794,7]
[320328427,1711293047336,-339.469608,0.00054794,7]
[320328428,1711293047345,-151.0,0.00054794,7]
[320328429,1711293047355,-396.769747,0.00054794,7]
[320328430,1711293047365,-396.769747,0.00054794,7]
[320328431,1711293047382,-151.0,0.00054794,7]
[320328432,1711293047395,-3445.99,0.00054794,120]
[320328433,1711293047405,-3445.99,0.00054794,120]
[320328434,1711293047415,-3445.99,0.00054794,120]
[320328435,1711293047425,-3445.99,0.00054794,120]
[320328436,1711293047436,-3445.99,0.00054794,120]
[320328437,1711293047445,-3445.99,0.00054794,120]
[320328438,1711293047457,-3445.99,0.00054794,120]
[320328439,1711293047467,-3445.99,0.00054794,120]
[320328440,1711293047477,-3445.99,0.00054794,120]
[320328441,1711293047486,-957.95,0.00054794,120]
[320328442,1711293047496,-3445.99,0.00054794,120]
[320328443,1711293047506,-3445.99,0.00054794,120]
[320328444,1711293047515,-957.95,0.00054794,120]
[320328445,1711293047525,-3445.99,0.00054794,120]
[320328446,1711293047535,-957.95,0.00054794,120]
[320328447,1711293047544,-957.95,0.00054794,120]
[320328448,1711293047554,-3445.99,0.00054794,120]
[320328449,1711293047564,-3445.99,0.00054794,120]
[320328450,1711293047574,-3445.99,0.00054794,120]
[320328451,1711293047585,-957.95,0.00054794,120]
[320328452,1711293047594,-957.95,0.00054794,120]
[320328453,1711293047604,-957.95,0.00054794,120]
[320328454,1711293047614,-3445.99,0.00054794,120]
[320328455,1711293047623,-957.95,0.00054794,120]
[320328456,1711293047633,-3445.99,0.00054794,120]
[320328457,1711293047643,-957.95,0.00054794,120]
[320328458,1711293047653,-3445.99,0.00054794,120]
[320328459,1711293047662,-957.95,0.00054794,120]
[320328460,1711293047672,-3445.99,0.00054794,120]
[320328461,1711293047682,-957.95,0.00054794,120]
[320328462,1711293047691,-3445.99,0.00054794,120]
[320328463,1711293047701,-3445.99,0.00054794,120]
[320328464,1711293047710,-957.95,0.00054794,120]
[320328465,1711293047720,-3445.99,0.00054794,120]
[320328466,1711293047730,-957.95,0.00054794,120]
[320328467,1711293047740,-957.95,0.00054794,120]
[320328468,1711293047749,-957.95,0.00054794,120]
[320328469,1711293047759,-957.95,0.00054794,120]
[320328470,1711293047768,-957.95,0.00054794,120]
[320328471,1711293047778,-957.95,0.00054794,120]
[320328472,1711293047788,-957.95,0.00054794,120]
[320328473,1711293047799,-957.95,0.00054794,120]
[320328474,1711293047811,-957.95,0.00054794,120]
[320328475,1711293047821,-957.95,0.00054794,120]
[320328476,1711293047831,-3445.99,0.00054794,120]
[320328477,1711293047841,-957.95,0.00054794,120]
[320328478,1711293047851,-2223.79513957,0.00054794,120]
[320328479,1711293047908,-1222.38007676,0.00054794,120]
[320328480,1711293047917,-958.05342104,0.00054794,120]
[320328481,1711293047925,-747.88,0.00054794,2]
[320328482,1711293047935,-747.88,0.00054794,2]
[320328483,1711293047945,-747.88,0.00054794,2]
[320328484,1711293047954,-747.88,0.00054794,2]
[320328485,1711293047963,-747.88,0.00054794,2]
[320328486,1711293047972,-747.88,0.00054794,2]
[320328487,1711293047981,-747.88,0.00054794,2]
[320328488,1711293047990,-747.88,0.00054794,2]
[320328489,1711293047999,-747.88,0.00054794,2]
[320328490,1711293048009,-747.88,0.00054794,2]
[320328491,1711293048018,-747.88,0.00054794,2]
[320328492,1711293048027,-747.88,0.00054794,2]
[320328493,1711293048037,-747.88,0.00054794,2]
[320328494,1711293048046,-747.88,0.00054794,2]
[320328495,1711293048055,-747.88,0.00054794,2]
[320328496,1711293048065,-747.88,0.00054794,2]
[320328497,1711293048074,-747.88,0.00054794,2]
[320328498,1711293048085,-747.88,0.00054794,2]
[320328499,1711293048093,-747.88,0.00054794,2]
[320328500,1711293048103,-747.88,0.00054794,2]
[320328501,1711293048112,-747.88,0.00054794,2]
[320328502,1711293048121,-747.88,0.00054794,2]
[320328503,1711293048130,-747.88,0.00054794,2]
[320328504,1711293048139,-747.91572186,0.00054794,2]
[320328505,1711293048149,-1441.780004,0.00054794,7]
[320328506,1711293048158,-1441.780004,0.00054794,7]
[320328507,1711293048167,-2675.831015,0.00054794,7]
[320328508,1711293048177,-2675.831015,0.00054794,7]
[320328509,1711293048186,-500.0,0.00054794,120]
[320328510,1711293048195,-500.0,0.00054794,120]
[320328511,1711293048208,-500.0,0.00054794,120]
[320328512,1711293048218,-500.0,0.00054794,120]
[320328513,1711293048227,-500.0,0.00054794,120]
[320328514,1711293048237,-500.0,0.00054794,120]
[320328515,1711293048247,-500.0,0.00054794,120]
[320328516,1711293048256,-500.0,0.00054794,120]
[320328517,1711293048266,-500.0,0.00054794,120]
[320328518,1711293048275,-500.0,0.00054794,120]
[320328519,1711293048285,-500.0,0.00054794,120]
[320328520,1711293048294,-500.0,0.00054794,120]
[320328521,1711293048304,-500.0,0.00054794,120]
[320328522,1711293048313,-500.0,0.00054794,120]
[320328523,1711293048323,-500.0,0.00054794,120]
[320328524,1711293048334,-500.0,0.00054794,120]
[320328525,1711293048346,-500.0,0.00054794,120]
[320328526,1711293048355,-500.0,0.00054794,120]
[320328527,1711293048365,-583.4099376,0.00054794,120]
[320328528,1711293048374,-151.0,0.00054794,7]
[320328529,1711293048383,-701.9,0.000567,6]
[320328530,1711293048392,-1754.76416808,0.00057,120]
[320328531,1711293048402,-150.89437394,0.00058513,2]
[320328532,1711293048411,-394.489226,0.0006,120]
[320328533,1711293048421,-6345.67659427,0.000616,120]
[320328537,1711293199806,154.90705577,0.00021916,60]
[320328538,1711293217801,154.90705577,0.00024108,60]
[320328539,1711293820337,1710.6306311,0.00020892,2]
[320328540,1711293858194,14385.2611142,0.00020892,2]
[320328541,1711293915009,154.90705577,0.00024106,60]
[320328542,1711293920615,238.57055994,0.00020892,2]
[320328543,1711293930151,-187.7475863,0.00021148,2]
[320328544,1711293930172,-162.42880783,0.00021149,2]
[320328545,1711293932979,154.90705577,0.00024106,60]
[320328546,1711293949811,154.90705577,0.00024106,60]
[320328547,1711293974936,154.90705577,0.00024106,60]
[320328548,1711293994942,154.90705577,0.00024106,60]
[320328551,1711294043118,-154.90705577,0.00021145,2]
[320328552,1711294043138,-435.36590059,0.00021145,2]
[320328553,1711294043158,-123.97865789,0.00021146,2]
[320328554,1711294045700,-740.21810619,0.00021146,2]
[320328555,1711294045724,-617.58899448,0.00021146,2]
[320328556,1711294045749,-308.50284193,0.00021149,2]
[320328557,1711294045868,-10006.58388563,0.0002115,2]
[320328558,1711294045919,-170.605729,0.00021755,2]
[320328559,1711294045944,-167.93441537,0.00021817,2]
[320328560,1711294045969,-166.666666,0.00021918,2]
[320328561,1711294045993,-272.116433,0.0002193,2]
[320328562,1711294046019,-500.0,0.00021939,2]
[320328563,1711294046043,-500.0,0.00022213,2]
[320328564,1711294046068,-166.666666,0.00022431,2]
[320328565,1711294046356,-301.84,0.00022487,2]
[320328566,1711294046382,-166.666666,0.00022944,2]
[320328567,1711294046406,-166.666666,0.00023456,2]
[320328568,1711294046429,-283.26959533,0.00023483,2]
[320328569,1711294046452,-166.666666,0.00023969,2]
[320328570,1711294046476,-942.6694196,0.00024105,2]
[320328571,1711294046499,-155.26217958,0.00024105,2]
[320328572,1711294046524,-633.09151644,0.00024105,2]
[320328573,1711294046553,-665.60142816,0.00024105,2]
[320328574,1711294046577,-181.36506606,0.00024106,2]
[320328575,1711294046602,-208.73581983,0.00024106,2]
[320328576,1711294046626,-1123.44496985,0.00024106,2]
[320328577,1711294046650,-154.95351395,0.00024106,2]
[320328578,1711294046674,-267.28744846,0.00024106,2]
[320328579,1711294046697,-162.86517147,0.00024106,2]
[320328580,1711294046721,-965.85369178,0.00024106,2]
[320328581,1711294046749,-211.43471809,0.00024106,2]
[320328582,1711294046772,-1537.480344,0.00024106,2]
[320328583,1711294046797,-187.36273973,0.00024106,2]
[320328584,1711294046820,-155.0,0.00024106,2]
[320328585,1711294046844,-500.0,0.00024107,2]
[320328586,1711294046869,-500.0,0.00024107,2]
[320328587,1711294046894,-500.0,0.00024107,2]
[320328588,1711294046917,-579.12125443,0.00024107,2]
[320328589,1711294046942,-500.0,0.00024107,2]
[320328590,1711294046970,-166.47738764,0.00024107,2]
[320328591,1711294049208,-333.52261236,0.00024107,2]
[320328592,1711294049236,-500.0,0.00024107,2]
[320328593,1711294049261,-500.0,0.00024107,2]
[320328594,1711294049286,-500.0,0.00024107,2]
[320328595,1711294049310,-500.0,0.00024107,2]
[320328596,1711294049340,-500.0,0.00024107,2]
[320328597,1711294049371,-500.0,0.00024107,2]
[320328598,1711294049402,-541.4,0.00024107,2]
[320328599,1711294049429,-733.86,0.00024107,2]
[320328600,1711294049458,-505.53,0.00024107,2]
[320328601,1711294049488,-500.0,0.00024107,2]
[320328602,1711294049518,-500.0,0.00024107,2]
[320328603,1711294049548,-209.67237575,0.00024107,2]
[320328604,1711294049574,-561.94,0.00024107,2]
[320328605,1711294049604,-588.65,0.00024107,2]
[320328606,1711294049630,-500.0,0.00024107,2]
[320328607,1711294049658,-500.0,0.00024107,2]
[320328608,1711294049686,-500.0,0.00024107,2]
[320328609,1711294049719,-500.0,0.00024107,2]
[320328610,1711294049747,-893.98,0.00024107,2]
[320328611,1711294049774,-1166.05,0.00024107,2]
[320328612,1711294049804,-13465.39501189,0.00024108,2]
[320328613,1711294050068,-500.0,0.00024107,2]
[320328614,1711294050095,-1299.41083001,0.00024108,2]
[320328615,1711294050125,-500.0,0.00024381,2]
[320328616,1711294050152,-162.01,0.00024381,2]
[320328617,1711294050179,-405.49,0.00024381,2]
[320328618,1711294050208,-500.0,0.00024381,2]
[320328619,1711294050240,-500.49421509,0.00024381,2]
[320328620,1711294050267,-209.56,0.00024381,2]
[320328621,1711294050299,-500.0,0.00024381,2]
[320328622,1711294050328,-500.0,0.00024381,2]
[320328623,1711294050356,-500.0,0.00024381,2]
[320328624,1711294050382,-500.0,0.00024381,2]
[320328625,1711294050408,-541.4,0.00024381,2]
[320328626,1711294050434,-733.86,0.00024381,2]
[320328627,1711294050462,-500.0,0.00024381,2]
[320328628,1711294050494,-500.0,0.00024381,2]
[320328629,1711294050521,-500.0,0.00024381,2]
[320328630,1711294050548,-500.0,0.00024381,2]
[320328631,1711294050574,-500.0,0.00024381,2]
[320328632,1711294050601,-391.94,0.00024381,2]
[320328633,1711294050628,-893.98,0.00024381,2]
[320328634,1711294050655,-1166.05,0.00024381,2]
[320328635,1711294050682,-500.0,0.00024381,2]
[320328636,1711294050708,-166.666666,0.00024482,2]
[320328637,1711294050735,-500.0,0.00024655,2]
[320328638,1711294050761,-166.06,0.00024655,2]
[320328639,1711294050787,-500.0,0.00024655,2]
[320328640,1711294050814,-500.0,0.00024655,2]
[320328641,1711294050840,-500.0,0.00024655,2]
[320328642,1711294050867,-500.0,0.00024655,2]
[320328643,1711294051021,-541.4,0.00024655,2]
[320328644,1711294051046,-733.86,0.00024655,2]
[320328645,1711294051070,-500.0,0.00024655,2]
[320328646,1711294051096,-500.0,0.00024655,2]
[320328647,1711294051121,-500.0,0.00024655,2]
[320328648,1711294051146,-586.83,0.00024655,2]
[320328649,1711294051170,-500.0,0.00024655,2]
[320328650,1711294051196,-893.98,0.00024655,2]
[320328651,1711294051223,-1166.05,0.00024655,2]
[320328652,1711294051248,-500.0,0.00024929,2]
[320328653,1711294051275,-500.0,0.00024929,2]
[320328654,1711294051298,-500.0,0.00024929,2]
[320328655,1711294051324,-500.0,0.00024929,2]
[320328656,1711294051348,-500.0,0.00024929,2]
[320328657,1711294051372,-541.4,0.00024929,2]
[320328658,1711294051397,-399.5582889,0.00024929,2]
[320328659,1711294051470,-500.0,0.00024655,2]
[320328660,1711294051494,-334.3017111,0.00024929,2]
[320328661,1711294051517,-500.0,0.00024929,2]
[320328662,1711294051542,-500.0,0.00024929,2]
[320328663,1711294051565,-500.0,0.00024929,2]
[320328664,1711294051589,-500.0,0.00024929,2]
[320328665,1711294051616,-893.98,0.00024929,2]
[320328666,1711294051641,-1166.05,0.00024929,2]
[320328667,1711294051666,-279.41,0.00024929,2]
[320328668,1711294051690,-500.0,0.00024952,2]
[320328669,1711294051714,-500.0,0.00024952,2]
[320328670,1711294051737,-500.0,0.00024952,2]
[320328671,1711294051762,-500.0,0.00024952,2]
[320328672,1711294051787,-500.0,0.00024952,2]
[320328673,1711294051810,-297.11841611,0.00024952,2]
[320328674,1711294051834,-599.04,0.00024952,2]
[320328675,1711294051858,-604.36,0.00024952,2]
[320328676,1711294051881,-500.0,0.00024952,2]
[320328677,1711294051906,-500.0,0.00024952,2]
[320328678,1711294051932,-500.0,0.00024952,2]
[320328679,1711294051959,-500.0,0.00024952,2]
[320328680,1711294051983,-500.0,0.00024952,2]
[320328681,1711294052007,-500.0,0.00024952,2]
[320328682,1711294052031,-500.0,0.00024952,2]
[320328683,1711294052054,-203.86620209,0.00024952,2]
[320328684,1711294052077,-500.45573103,0.00024952,2]
[320328685,1711294052101,-500.0,0.00024952,2]
[320328686,1711294052126,-500.0,0.00024952,2]
[320328687,1711294052149,-236.88442558,0.00024952,2]
[320328688,1711294052173,-500.0,0.00024952,2]
[320328689,1711294052197,-500.0,0.00024952,2]
[320328690,1711294052229,-500.0,0.00024952,2]
[320328691,1711294052253,-501.47094557,0.00024952,2]
[320328692,1711294052277,-256.68896774,0.00024952,2]
[320328693,1711294052301,-500.0,0.00024952,2]
[320328694,1711294052324,-500.0,0.00024952,2]
[320328695,1711294052349,-500.0,0.00024952,2]
[320328696,1711294052372,-500.0,0.00024952,2]
[320328697,1711294052396,-156.915526,0.00025106,2]
[320328698,1711294052422,-174.863561,0.00025106,2]
[320328699,1711294052447,-3973.170404,0.00025143,2]
[320328700,1711294052475,-500.0,0.00025203,2]
[320328701,1711294052499,-181.35,0.00025203,2]
[320328702,1711294052523,-500.0,0.00025203,2]
[320328703,1711294052547,-500.0,0.00025203,2]
[320328704,1711294052571,-140.07410978,0.00025203,2]
[320328705,1711294052632,-401.32589022,0.00025203,2]
[320328706,1711294052657,-733.86,0.00025203,2]
[320328707,1711294052681,-628.51,0.00025203,2]
[320328708,1711294052705,-500.0,0.00025203,2]
[320328709,1711294052731,-500.0,0.00025203,2]
[320328710,1711294052754,-500.0,0.00025203,2]
[320328711,1711294052779,-893.98,0.00025203,2]
[320328712,1711294052805,-1166.05,0.00025203,2]
[320328713,1711294052828,-553.89,0.00025226,2]
[320328714,1711294052852,-500.0,0.00025226,2]
[320328715,1711294052876,-500.0,0.00025226,2]
[320328716,1711294052901,-500.0,0.00025226,2]
[320328717,1711294052925,-500.0,0.00025226,2]
[320328718,1711294052948,-500.0,0.00025226,2]
[320328719,1711294052974,-500.0,0.00025226,2]
[320328720,1711294052996,-500.0,0.00025226,2]
[320328721,1711294053120,-500.0,0.00025226,2]
[320328722,1711294053145,-500.0,0.00025226,2]
[320328723,1711294053168,-500.0,0.00025226,2]
[320328724,1711294053192,-500.0,0.00025226,2]
[320328725,1711294053216,-500.0,0.00025226,2]
[320328726,1711294053239,-500.0,0.00025226,2]
[320328727,1711294053262,-500.0,0.00025226,2]
[320328728,1711294053285,-500.0,0.00025477,2]
[320328729,1711294053310,-500.0,0.00025477,2]
[320328730,1711294053334,-500.0,0.00025477,2]
[320328731,1711294053359,-541.4,0.00025477,2]
[320328732,1711294053384,-733.86,0.00025477,2]
[320328733,1711294053408,-285.42,0.00025477,2]
[320328734,1711294053433,-500.0,0.00025477,2]
[320328735,1711294053456,-500.0,0.00025477,2]
[320328736,1711294053482,-893.98,0.00025477,2]
[320328737,1711294053507,-1166.05,0.00025477,2]
[320328738,1711294053533,-500.0,0.000255,2]
[320328739,1711294053558,-500.0,0.000255,2]
[320328740,1711294053582,-551.13,0.000255,2]
[320328741,1711294053607,-500.0,0.000255,2]
[320328742,1711294053632,-500.0,0.000255,2]
[320328743,1711294053657,-500.0,0.000255,2]
[320328744,1711294053682,-500.0,0.000255,2]
[320328745,1711294053707,-500.0,0.000255,2]
[320328746,1711294053732,-500.0,0.000255,2]
[320328747,1711294053757,-500.0,0.00025751,2]
[320328748,1711294053781,-500.0,0.00025751,2]
[320328749,1711294053806,-450.54410978,0.00025751,2]
[320328750,1711294053883,-49.45589022,0.00025751,2]
[320328751,1711294053909,-541.4,0.00025751,2]
[320328752,1711294053941,-733.86,0.00025751,2]
[320328753,1711294053967,-500.0,0.00025751,2]
[320328754,1711294053991,-500.0,0.00025751,2]
[320328755,1711294054017,-893.98,0.00025751,2]
[320328756,1711294054041,-1166.05,0.00025751,2]
[320328757,1711294054064,-335.93755046,0.00025773,2]
[320328758,1711294054088,-525.53504883,0.00025773,2]
[320328759,1711294054112,-500.0,0.00025773,2]
[320328760,1711294054137,-178.47426856,0.00025773,2]
[320328761,1711294054166,-648.91,0.00025774,2]
[320328762,1711294054190,-500.0,0.00025774,2]
[320328763,1711294054214,-500.0,0.00025774,2]
[320328764,1711294054241,-500.0,0.00025774,2]
[320328765,1711294054265,-553.92,0.00025774,2]
[320328766,1711294054289,-209.72640167,0.00025774,2]
[320328767,1711294054313,-500.0,0.00026025,2]
[320328768,1711294054337,-500.0,0.00026025,2]
[320328769,1711294054363,-500.0,0.00026025,2]
[320328770,1711294054387,-541.4,0.00026025,2]
[320328771,1711294054412,-733.86,0.00026025,2]
[320328772,1711294054435,-508.14,0.00026025,2]
[320328773,1711294054459,-500.0,0.00026025,2]
[320328774,1711294054486,-893.98,0.00026025,2]
[320328775,1711294054512,-1166.05,0.00026025,2]
[320328776,1711294054537,-225.28,0.00026048,2]
[320328777,1711294054561,-500.0,0.00026048,2]
[320328778,1711294054586,-500.0,0.00026048,2]
[320328779,1711294054611,-500.0,0.00026299,2]
[320328780,1711294054635,-500.0,0.00026299,2]
[320328781,1711294054661,-500.0,0.00026299,2]
[320328782,1711294054685,-541.4,0.00026299,2]
[320328783,1711294054709,-733.86,0.00026299,2]
[320328784,1711294054735,-500.0,0.00026299,2]
[320328785,1711294054760,-893.98,0.00026299,2]
[320328786,1711294054785,-1166.05,0.00026299,2]
[320328787,1711294054809,-500.0,0.00026322,2]
[320328788,1711294054833,-500.0,0.00026322,2]
[320328789,1711294054857,-552.92892656,0.00026573,2]
[320328790,1711294054881,-500.0,0.00026573,2]
[320328791,1711294054905,-500.0,0.00026573,2]
[320328792,1711294054931,-541.4,0.00026573,2]
[320328793,1711294054959,-664.4219137,0.00026573,2]
[320328794,1711294055012,-69.4380863,0.00026573,2]
[320328795,1711294055038,-500.0,0.00026573,2]
[320328796,1711294055063,-893.98,0.00026573,2]
[320328797,1711294055087,-1166.05,0.00026573,2]
[320328798,1711294055111,-500.0,0.00026596,2]
[320328799,1711294055135,-500.0,0.00026596,2]
[320328800,1711294055162,-500.0,0.00026847,2]
[320328801,1711294055192,-500.0,0.00026847,2]
[320328802,1711294055218,-541.4,0.00026847,2]
[320328803,1711294055244,-733.86,0.00026847,2]
[320328804,1711294055269,-500.0,0.00026847,2]
[320328805,1711294055297,-893.98,0.00026847,2]
[320328806,1711294055322,-1166.05,0.00026847,2]
[320328807,1711294055347,-500.0,0.0002687,2]
[320328808,1711294055371,-451.13,0.0002687,2]
[320328809,1711294055395,-1619.429426,0.00027,2]
[320328810,1711294055418,-500.0,0.00027121,2]
[320328811,1711294055442,-500.0,0.00027121,2]
[320328812,1711294055467,-541.4,0.00027121,2]
[320328813,1711294055491,-733.86,0.00027121,2]
[320328814,1711294055515,-500.0,0.00027121,2]
[320328815,1711294055540,-893.98,0.00027121,2]
[320328816,1711294055565,-1166.05,0.00027121,2]
[320328817,1711294055589,-500.0,0.00027144,2]
[320328818,1711294055613,-500.0,0.00027395,2]
[320328819,1711294055638,-500.0,0.00027395,2]
[320328820,1711294055663,-541.4,0.00027395,2]
[320328821,1711294055687,-733.86,0.00027395,2]
[320328822,1711294055832,-500.0,0.00027395,2]
[320328823,1711294055858,-893.98,0.00027395,2]
[320328824,1711294055883,-1166.05,0.00027395,2]
[320328825,1711294055908,-1000.0,0.00027397,2]
[320328826,1711294055935,-1000.0,0.00027397,2]
[320328827,1711294055958,-931.18,0.00027397,2]
[320328828,1711294055984,-500.0,0.00027397,2]
[320328829,1711294056008,-362.9224877,0.00027397,2]
[320328830,1711294056041,-137.0775123,0.00027397,2]
[320328831,1711294056066,-500.0,0.00027397,2]
[320328832,1711294056090,-500.0,0.00027397,2]
[320328833,1711294056117,-500.0,0.00027397,2]
[320328834,1711294056141,-500.0,0.00027397,2]
[320328835,1711294056165,-500.0,0.00027397,2]
[320328836,1711294056193,-500.0,0.00027397,2]
[320328837,1711294056219,-500.0,0.00027397,2]
[320328838,1711294056244,-500.0,0.00027397,2]
[320328839,1711294056268,-500.0,0.00027397,2]
[320328840,1711294056292,-500.0,0.00027397,2]
[320328841,1711294056316,-500.0,0.00027397,2]
[320328842,1711294056339,-500.0,0.00027397,2]
[320328843,1711294056363,-500.0,0.00027397,2]
[320328844,1711294056387,-500.0,0.00027397,2]
[320328845,1711294056411,-500.0,0.00027397,2]
[320328846,1711294056435,-500.0,0.00027397,2]
[320328847,1711294056461,-500.0,0.00027397,2]
[320328848,1711294056486,-500.0,0.00027397,2]
[320328849,1711294056509,-500.0,0.00027397,2]
[320328850,1711294056536,-500.0,0.00027397,2]